Cogmind - Beta 16.1 *** ADVENTURER MODE // 2026.03.26 @ 20:46:27 Player: Sharded of Serpulo Result: Destroyed by P-80 Master with Gamma Rifle Performance ------------- Evolutions (7) 3500 Regions Visited (15) 3000 Robots Destroyed (266) 1330 Value Destroyed (12612) 12612 Prototype IDs (8) 160 Alien Tech Used (0) 0 Bonus (3405) 3405 TOTAL SCORE: 24007 Bonus ------- High Alert Combat Kills 36 Follower Combat Kills 152 Met Warlord at Base 500 MAIN.C Attacked Warlord 500 Warlord Defense Kills 2262 Friendly Fire -45 Cogmind --------- Core Integrity 0/1300 Matter 300/300 Energy 100/100 System Corruption 19% Temperature Cool (9) Movement Core (50) Location -3/Research Parts ------- > --- POWER (2) -------- (None) > --- PROPULSION (5) --- (None) > --- UTILITY (10) ----- Machine Analyzer Advanced Target Analyzer Weapon Cycler > --- WEAPON (4) ------- (None) > --- INVENTORY (5) ---- Heavy Treads Improved Heavy Treads Peak State ------------ > --- POWER ------------ Light Quantum Reactor Improved Quantum Reactor > --- PROPULSION ------- Medium Treads Improved Heavy Treads Biometal Medium Treads Biometal Medium Treads > --- UTILITY ---------- Cryofiber Web Advanced Heat Sink Advanced Heat Sink Advanced Cooling System Huge Storage Unit Machine Analyzer Advanced Target Analyzer Improved Particle Charger Weapon Cycler Makeshift System Shield > --- WEAPON ----------- Plasma Rifle Phase Gun Phase Gun Quantum Rifle > --- INVENTORY -------- Fusion Compressor Antimatter Reactor Antimatter Reactor Light Antimatter Reactor Light Antimatter Reactor Light Antimatter Reactor Light Antimatter Reactor Particle Reactor Reinforced Quantum Reactor Heavy Treads Heavy Treads Heavy Siege Treads Biometal Medium Treads Improved Heat Sink Advanced Heat Sink Advanced Signal Interpreter Advanced Target Analyzer Improved Cloaking Device Heavy Laser Makeshift Laser Beamcaster [Rating: 138] Favorites ----------- Power Reinforced Quantum Reactor Engine Light Deuterium Engine Power Core Light Nuclear Core Reactor Reinforced Quantum Reactor Propulsion Carbon-fiber Leg Treads Heavy Treads Leg Carbon-fiber Leg Utility Cryofiber Web Device Cryofiber Web Storage Huge Storage Unit Processor Machine Analyzer Hackware Hacking Suite Protection Hardened Medium Armor Plating Weapon Phase Gun Energy Gun Phase Gun Energy Cannon Cooled Particle Cannon Ballistic Gun Heavy Machine Gun Slashing Weapon Mining Claw Build | -11 -10 -10 -9 -8 -7 -6 -5 -5 -5 -4 -4 -4 -4 -3 -3 ------- Run | Yrd Mat Min Mat Mat Fac Fac Fac Was Fac Fac Upp Upp War Pro Res Slots Evolved 14 | . . . 2 2 2 2 2 . . 2 . . . . 2 Power 1 | . . . . . 1 . . . . . . . . . . Propulsion 3 | . . . 1 1 . 1 . . . . . . . . . Utility 8 | . . . 1 1 . 1 2 . . 1 . . . . 2 Weapon 2 | . . . . . 1 . . . . 1 . . . . . Parts Attached 194 | 5 9 . 12 25 16 27 18 3 4 20 2 5 18 8 22 Power 28 | . 1 . 1 4 7 2 5 1 . 1 . . 2 1 3 Engine 10 | . 1 . 1 3 2 1 1 . . . . . 1 . . Core 11 | . . . . 1 5 1 4 . . . . . . . . Reactor 7 | . . . . . . . . 1 . 1 . . 1 1 3 Propulsion 54 | 2 5 . 3 12 4 7 2 1 . 6 1 1 3 1 6 Treads 23 | . 3 . 1 . . . 2 1 . 6 . 1 3 1 5 Leg 31 | 2 2 . 2 12 4 7 . . . . 1 . . . 1 Wheel . | . . . . . . . . . . . . . . . . Hover . | . . . . . . . . . . . . . . . . Flight . | . . . . . . . . . . . . . . . . Utility 65 | 1 3 . 3 7 1 10 7 1 2 10 1 3 4 4 8 Device 35 | . 1 . 2 4 . 3 4 1 . 5 . 3 3 4 5 Storage 5 | 1 2 . . . . 1 1 . . . . . . . . Processor 4 | . . . . . . . . . . 1 1 . . . 2 Hackware 7 | . . . . . . 1 1 . 2 2 . . . . 1 Protection 14 | . . . 1 3 1 5 1 . . 2 . . 1 . . Artifact . | . . . . . . . . . . . . . . . . Weapon 47 | 2 . . 5 2 4 8 4 . 2 3 . 1 9 2 5 Energy Gun 30 | 2 . . 4 . . 6 1 . 2 2 . . 7 2 4 Energy Cannon 15 | . . . . 2 4 2 3 . . 1 . 1 2 . . Ballistic Gun 1 | . . . . . . . . . . . . . . . 1 Ballistic Cannon . | . . . . . . . . . . . . . . . . Launcher . | . . . . . . . . . . . . . . . . Special Weapon . | . . . . . . . . . . . . . . . . Impact Weapon . | . . . . . . . . . . . . . . . . Slashing Weapon 1 | . . . 1 . . . . . . . . . . . . Piercing Weapon . | . . . . . . . . . . . . . . . . Special Melee Weapon . | . . . . . . . . . . . . . . . . Unidentified Prototypes 8 | . . . 2 . 1 1 . . 1 . . . 2 . 1 Parts Lost 62 | . . . 1 3 . . 1 . . 5 3 4 14 3 28 Power 6 | . . . . . . . 1 . . . . 1 1 . 3 Propulsion 10 | . . . . . . . . . . 1 . . 3 1 5 Utility 27 | . . . 1 2 . . . . . 4 1 1 6 1 11 Weapon 19 | . . . . 1 . . . . . . 2 2 4 1 9 Highest Loss Streak 20 | . . . 1 1 . . 1 . . 2 3 2 12 1 20 To Critical Strikes 1 | . . . . . . . . . . . . 1 . . . Average Backups 16 | 3 6 7 12 14 14 14 15 18 21 20 20 20 20 15 18 Power 3 | 1 1 1 3 2 4 2 2 4 4 4 4 3 3 5 5 Propulsion 3 | 1 4 4 4 4 2 2 2 3 3 2 4 4 4 3 6 Utility 5 | . . 1 2 2 2 4 5 6 7 9 9 9 7 3 4 Weapon 3 | . 1 1 2 5 5 5 4 4 5 3 2 2 6 3 1 Tool/Special . | . . . . . . . . . . . . . . . . Unused Backups 43 | . 1 . 2 4 6 4 1 . 1 2 . . 6 . 16 Power 13 | . . . 1 1 3 1 1 . . . . . . . 6 Propulsion 9 | . 1 . . . 1 1 . . . . . . 1 . 5 Utility 9 | . . . . 1 1 . . . . 2 . . 1 . 4 Weapon 12 | . . . 1 2 1 2 . . 1 . . . 4 . 1 Tool/Special . | . . . . . . . . . . . . . . . . Average Slot Usage (%) 92 | . 97 100 99 97 99 99 90 89 87 88 88 88 87 86 89 Engine 3 | . 14 14 11 6 6 3 1 4 . . . . . . . Core 3 | . . . . 2 7 8 8 5 5 2 5 1 . . . Reactor 4 | . . . . . . . . . 5 7 5 8 9 10 8 Treads 9 | . 10 28 16 . . . 5 14 17 14 10 12 14 14 16 Leg 12 | . 18 . 16 35 30 33 14 3 . . 4 2 . . . Device 17 | . 12 14 15 12 15 13 20 28 22 20 10 11 14 28 26 Storage 6 | . 14 14 11 9 7 6 5 5 5 5 5 5 5 5 3 Processor 3 | . . . . . . . . . . 3 9 10 9 5 9 Hackware 4 | . . . . . . . 7 . 5 7 15 13 9 . 3 Protection 4 | . . . 5 12 7 11 5 5 5 4 . . . . . Energy Gun 14 | . 28 28 20 9 . 10 13 17 17 19 14 14 19 20 17 Energy Cannon 5 | . . . . 8 23 8 3 . . 1 5 5 1 . . Peak Build Rating 138 | 5 8 8 17 32 49 63 81 90 98 120 117 120 123 118 138 Average Rating 81 | 3 7 8 14 24 45 59 73 85 94 113 116 118 115 115 127 On Entrance 61 | . 5 8 8 17 32 49 61 73 90 98 110 116 120 72 117 Avg Prop Armor Cover (%) 3 | . . . . . . . . 6 . . 3 3 9 . 9 Naked Turns . | . . . . . . . . . . . . . . . . Heaviest Build 166 | 9 31 31 38 44 62 74 127 135 137 166 142 165 160 160 149 Greatest Support 180 | 20 40 40 60 54 62 87 100 170 170 180 145 173 173 173 180 Greatest Overweight (x) 29 | . . . 1 1 1 . 1 1 . 1 . 1 1 1 29 Average Overweight (x) . | . . . . . . . . . . . . . . . . Largest Inventory Capacity 25 | 8 25 15 15 15 15 15 25 25 25 25 25 25 25 25 25 Average Capacity 20 | 7 10 15 15 15 15 15 18 25 25 25 25 25 25 25 24 Most Carried 25 | 5 8 7 15 15 15 15 18 22 25 25 25 25 25 21 25 Average Carried 18 | 3 6 7 12 14 14 14 15 19 23 23 24 24 24 17 22 Final Capacity 25 | 8 15 15 15 15 15 15 25 25 25 25 25 25 25 25 5 Final Carried 25 | 5 7 7 15 15 14 14 18 22 24 25 25 24 22 18 4 Class Distribution -------------------- 36% | Hacker-Tank 24% | Scavenger-Tank 17% | Mutant 11% | Scientist-Tank 8% | Scavenger-Gunner Dominant Class ---------------- Mutant | -10/Materials Mutant | -10/Mines Mutant | -9/Materials Mutant | -8/Materials Scientist-Tank | -7/Factory Scavenger-Tank | -6/Factory Hacker-Tank | -5/Factory Scavenger-Tank | -5/Waste Hacker-Tank | -5/Factory Hacker-Tank | -4/Factory Hacker-Tank | -4/Upper Caves Hacker-Tank | -4/Upper Caves Hacker-Tank | -4/Warlord Scavenger-Tank | -3/Proximity Caves Scavenger-Gunner | -3/Research Resources | -11 -10 -10 -9 -8 -7 -6 -5 -5 -5 -4 -4 -4 -4 -3 -3 ----------- Run | Yrd Mat Min Mat Mat Fac Fac Fac Was Fac Fac Upp Upp War Pro Res Matter Collected 2889 | 248 52 43 217 310 210 310 313 40 104 304 55 75 160 206 242 Remotely . | . . . . . . . . . . . . . . . . Salvage Created 14243 | . 193 . 884 1211 1580 1668 874 1122 420 2046 390 698 690 408 2059 Parts 498 | . 11 . 54 62 70 66 23 7 9 55 10 13 16 23 79 Haulers Intercepted 2 | . . . 1 . . 1 . . . . . . . . . Recyclers Shooed 4 | . 2 . . . . 2 . . . . . . . . . Parts Field Recycled . | . . . . . . . . . . . . . . . . Retrieved Matter . | . . . . . . . . . . . . . . . . Parts Self-Destructed 41 | . . . . . . . . . . . 9 10 . 22 . Prevented 7 | . . . . . . . . . . . 4 3 . . . Parts Restored . | . . . . . . . . . . . . . . . . Kills | -11 -10 -10 -9 -8 -7 -6 -5 -5 -5 -4 -4 -4 -4 -3 -3 ------- Run | Yrd Mat Min Mat Mat Fac Fac Fac Was Fac Fac Upp Upp War Pro Res Combat Hostiles Destroyed 234 | . 6 . 23 19 30 24 14 4 6 35 6 11 15 12 29 Guns 135 | . 6 . 22 8 . 8 10 . 3 27 3 5 8 11 24 Cannons 62 | . . . . 10 30 13 1 . . . 2 1 5 . . AOE 5 | . . . 1 1 . 1 . . . . . . 2 . . Classes Destroyed 20 | . 3 . 4 1 2 2 1 1 . 1 . . 4 1 . Worker 3 | . . . . 1 . . 1 . . 1 . . . . . Builder 2 | . . . . . . 1 . . . 1 . . . . . Hauler 2 | . . . 1 . . 1 . . . . . . . . . Recycler 4 | . 1 . . . . 2 . . . . . . . . 1 Operator 1 | . . . . . . . . . . 1 . . . . . Drone 2 | . . . . . . . . . . . . . . 2 . Watcher 19 | . . . 1 5 5 3 4 . 1 . . . . . . Swarmer 58 | . 5 . 10 . 4 6 5 . . 12 1 2 . 9 4 Saboteur 1 | . . . . . . 1 . . . . . . . . . Grunt 84 | . 1 . 8 11 17 10 3 . . 9 4 . 9 . 12 Duelist 6 | . . . 1 . 2 . . . . 1 . 2 . . . Protector 1 | . . . . . . . . . . . . . 1 . . Sentry 29 | . . . 4 8 2 2 3 . 2 4 1 1 . 1 1 Specialist 2 | . . . . . . . . . . . . . 2 . . Hunter 12 | . . . . . 1 1 . . . 2 . 6 . . 2 Programmer 31 | . . . . . 4 5 2 . 3 6 . . 1 . 10 Behemoth 3 | . . . . . . . 1 . 1 1 . . . . . Compactor 4 | . . . . . . . . 4 . . . . . . . Striker 1 | . . . . . . . . . . . . . 1 . . Executioner 1 | . . . . . . . . . . . . . 1 . . Best Kill Streak 11 | . 3 . 6 6 7 4 5 2 2 10 3 5 11 6 7 Combat Bots Only 11 | . 3 . 6 4 7 4 5 2 2 9 3 5 11 6 7 Max Kills in Single Turn 3 | . 1 . 2 1 1 3 2 1 1 3 1 2 2 3 2 Gunslinging 2 | . . . 1 . . . 1 . . 1 . . . 2 1 Exploded 1 | . . . 1 1 . 1 . . . . . . 1 . . Melee . | . . . . . . . . . . . . . . . . Uniques/NPCs Destroyed . | . . . . . . . . . . . . . . . . Combat | -11 -10 -10 -9 -8 -7 -6 -5 -5 -5 -4 -4 -4 -4 -3 -3 -------- Run | Yrd Mat Min Mat Mat Fac Fac Fac Was Fac Fac Upp Upp War Pro Res Hostile Shots Fired 1819 | . 33 . 91 100 118 99 75 . 27 286 57 119 404 33 377 Missed 498 | . 15 . 23 30 33 36 22 . 8 60 9 24 138 11 89 Hits 1321 | . 18 . 68 70 85 63 53 . 19 226 48 95 266 22 288 Melee 3 | . . . . . 3 . . . . . . . . . . Projectile 1318 | . 18 . 68 70 82 63 53 . 19 226 48 95 266 22 288 AOE 1 | . . . . . . . . . . 1 . . . . . Critical Strikes 63 | . . . . 3 2 4 2 . . 16 . 6 11 . 19 Part Disruptions 5 | . . . . . . . . . . . . . 1 . 4 Damage Taken 18165 | . 83 . 492 950 919 811 823 . 352 3384 749 882 3602 393 4725 Core 2442 | . 20 . 59 83 163 57 55 . 16 144 12 33 456 33 1311 Absorbed by Shields 478 | . 34 . 54 . . . . . . 92 . 298 . . . Reduced by Siege Mode 819 | . . . . . . . . . 17 358 142 93 204 . 5 Redirected to Shielding 2 | . . . . . . 2 . . . . . . . . . Ignored by Resistances 5320 | . 39 . 174 271 268 226 226 . 98 988 217 333 1068 109 1303 Regen/Repaired (Parts) 1188 | . . . . 152 36 259 . . 304 358 . . 79 . . Core Remaining (%) 82 | 100 . 92 85 84 76 93 . . 92 . . . . 41 . Volleys Fired 534 | . 16 . 41 57 58 65 42 22 14 69 14 22 35 16 63 Largest 4 | . 2 . 2 2 3 3 3 3 3 4 4 4 4 4 4 Hottest 363 | . 100 . 100 150 225 255 294 255 255 302 338 363 326 352 358 Shots Fired 1632 | . 32 . 80 110 174 177 126 67 43 274 48 84 120 65 232 Gun 1228 | . 32 . 80 65 . 81 96 67 43 266 34 62 105 65 232 Cannon 404 | . . . . 45 174 96 30 . . 8 14 22 15 . . Launcher . | . . . . . . . . . . . . . . . . Special . | . . . . . . . . . . . . . . . . Kinetic 7 | . . . . . . . . . . . . . . . 7 Thermal 1426 | . 32 . 38 57 174 137 126 67 43 274 35 69 84 65 225 Explosive . | . . . . . . . . . . . . . . . . Electromagnetic 163 | . . . 42 53 . 40 . . . . 13 15 . . . Entropic 36 | . . . . . . . . . . . . . 36 . . Robot Hit Streak 61 | . 6 . 18 23 61 26 18 43 21 27 20 18 34 13 35 Robot Miss Streak 5 | . 5 . 2 4 2 3 3 1 2 4 1 2 2 3 3 Penetration Max . | . . . . . . . . . . . . . . . . Secondary Targets 29 | . 1 . 4 . . . 1 1 . 12 . . . 3 7 Max Gunslinging Chain 3 | . 1 . 1 . . . 1 1 . 3 . . . 2 2 Shots Hit Robots 1237 | . 19 . 64 88 126 130 87 62 38 191 41 66 98 37 190 Core Hits 498 | . 11 . 43 51 54 56 30 10 13 70 13 20 41 17 69 Critical Kills 6 | . . . . . . 1 . . . . 1 4 . . . Critical Parts Destroyed 3 | . . . . . . . . . . . . . 2 . 1 Critical Strikes 112 | . 6 . 3 . . 5 13 4 8 26 3 8 8 3 25 Burn 98 | . 6 . 3 . . 2 13 4 8 26 2 4 4 3 23 Meltdown 6 | . . . . . . 1 . . . . 1 4 . . . Destroy 2 | . . . . . . . . . . . . . . . 2 Corrupt 2 | . . . . . . 2 . . . . . . . . . Detonate 2 | . . . . . . . . . . . . . 2 . . Sunder 2 | . . . . . . . . . . . . . 2 . . Melee Attacks 10 | . . . 5 5 . . . . . . . . . . . Impact . | . . . . . . . . . . . . . . . . Slashing 10 | . . . 5 5 . . . . . . . . . . . Piercing . | . . . . . . . . . . . . . . . . Sneak Attacks . | . . . . . . . . . . . . . . . . Combat Hostiles . | . . . . . . . . . . . . . . . . Follow-up Attacks . | . . . . . . . . . . . . . . . . Damage Inflicted 31303 | . 266 . 988 2076 3393 3501 1900 1134 887 4073 1062 1715 4236 1083 4989 Guns 21316 | . 266 . 907 1039 . 1173 1350 1134 887 4037 629 1143 2679 1083 4989 Cannons 8779 | . . . . 875 3393 2113 550 . . 36 433 572 807 . . Explosions 1208 | . . . 81 162 . 215 . . . . . . 750 . . Melee . | . . . . . . . . . . . . . . . . Ramming . | . . . . . . . . . . . . . . . . Kinetic 138 | . . . . . . . . . . . . . . . 138 Thermal 27027 | . 266 . 431 1190 3393 3076 1900 1134 887 4073 785 1424 2534 1083 4851 Explosive . | . . . . . . . . . . . . . . . . Electromagnetic 2436 | . . . 557 886 . 425 . . . . 277 291 . . . Impact . | . . . . . . . . . . . . . . . . Slashing . | . . . . . . . . . . . . . . . . Piercing . | . . . . . . . . . . . . . . . . Entropic 1702 | . . . . . . . . . . . . . 1702 . . Highest Corruption 19 | . . . 1 . . 3 1 1 4 2 2 . 5 5 19 Average Corruption 2 | . . . 1 . . 1 1 1 2 1 2 . 5 5 3 Corruption Purged . | . . . . . . . . . . . . . . . . Corruption Blocked . | . . . . . . . . . . . . . . . . Effects 99 | . . . . . . 10 2 5 13 8 . . 4 40 17 Message Errors 21 | . . . . . . . 1 . 3 . . . 1 11 5 Matter Fused 18 | . . . . . . . 1 . 4 1 . . . 10 2 Heat Flow Errors 18 | . . . . . . 3 . 2 1 2 . . 1 4 5 Energy Discharges 8 | . . . . . . 1 . 1 1 2 . . . 3 . Parts Fused 2 | . . . . . . 1 . . . . . . . 1 . Data Loss (minor) 16 | . . . . . . 1 . 1 2 1 . . 2 7 2 Data Loss (major) 6 | . . . . . . 2 . . 1 2 . . . 1 . Misfires 6 | . . . . . . . . 1 1 . . . . 2 2 Alerts 1 | . . . . . . 1 . . . . . . . . . Weapon Failures 3 | . . . . . . 1 . . . . . . . 1 1 Overload Shots 21 | . . . . . . 21 . . . . . . . . . Effects 2 | . . . . . . 2 . . . . . . . . . Energy Bleed 1 | . . . . . . 1 . . . . . . . . . Short Circuit 1 | . . . . . . 1 . . . . . . . . . Overflow Damage 237 | . . . . 10 60 89 . . . . 3 . 75 . . Projectiles 237 | . . . . 10 60 89 . . . . 3 . 75 . . Explosions . | . . . . . . . . . . . . . . . . Melee . | . . . . . . . . . . . . . . . . Knockbacks . | . . . . . . . . . . . . . . . . Impact . | . . . . . . . . . . . . . . . . Kinetic . | . . . . . . . . . . . . . . . . Secondary . | . . . . . . . . . . . . . . . . Self-Inflicted Damage 145 | . . . 29 116 . . . . . . . . . . . Shots 3 | . . . 1 2 . . . . . . . . . . . Rammed . | . . . . . . . . . . . . . . . . Targets Rammed . | . . . . . . . . . . . . . . . . Kicked . | . . . . . . . . . . . . . . . . Crushed . | . . . . . . . . . . . . . . . . Highest Temperature 415 | . 207 . 246 207 260 387 327 149 . 415 199 216 204 368 281 Average Temperature 106 | . 71 . 68 89 122 151 122 73 . 121 130 117 114 122 84 Received Heat Transfer 3910 | . 16 . 172 540 507 246 216 . 21 480 222 9 644 9 828 Effects 6 | . . . . . . 3 1 . . 2 . . . . . Interference 4 | . . . . . . 3 . . . 1 . . . . . Matter Decay 1 | . . . . . . . 1 . . . . . . . . Short Circuit 1 | . . . . . . . . . . 1 . . . . . Siege Activations 28 | . . . . . . . 2 2 4 9 2 4 3 1 1 Total Turns 610 | . . . . . . . 21 19 200 219 38 58 47 6 2 Longest Duration 172 | . . . . . . . 13 16 172 53 26 21 20 6 2 Martial Activations . | . . . . . . . . . . . . . . . . Shielding Activations . | . . . . . . . . . . . . . . . . Robots Disrupted . | . . . . . . . . . . . . . . . . Combat Hostiles . | . . . . . . . . . . . . . . . . Robots Corrupted 1 | . . . . . . 1 . . . . . . . . . Combat Hostiles 1 | . . . . . . 1 . . . . . . . . . Parts Fried 14 | . . . 2 5 . 5 . . . . 2 . . . . Impact Corruptions . | . . . . . . . . . . . . . . . . Robots Melted 32 | . . . . . . 1 4 4 3 8 1 5 . 1 5 Combat Hostiles 31 | . . . . . . 1 3 4 3 8 1 5 . 1 5 Parts Melted 211 | . 4 . 1 2 12 14 23 16 21 55 . 10 4 3 46 Heat Transferred 56193 | . 1221 . 1408 1778 5282 4760 5700 3550 2700 11337 1505 2695 3367 1591 9299 Parts Sabotaged . | . . . . . . . . . . . . . . . . Parts Stolen . | . . . . . . . . . . . . . . . . Parts Stripped . | . . . . . . . . . . . . . . . . Power Chain Reactions 5 | . . . 2 2 . 1 . . . . . . . . . Alert | -11 -10 -10 -9 -8 -7 -6 -5 -5 -5 -4 -4 -4 -4 -3 -3 ------- Run | Yrd Mat Min Mat Mat Fac Fac Fac Was Fac Fac Upp Upp War Pro Res Maximum Alert Level 2 | . . . . 1 . . . . . 1 . . . . 2 Low Security (%) 81 | 100 100 100 100 86 100 100 100 100 100 38 . . . . 21 Level 1 16 | . . . . 13 . . . . . 61 . . . . 65 Level 2 1 | . . . . . . . . . . . . . . . 13 Level 3 . | . . . . . . . . . . . . . . . . Level 4 . | . . . . . . . . . . . . . . . . Level 5 . | . . . . . . . . . . . . . . . . High Security . | . . . . . . . . . . . . . . . . Max Security . | . . . . . . . . . . . . . . . . Peak Influence 450 | . 70 16 190 259 151 170 110 . 50 389 . . . . 450 Initial 450 | . . 16 . 62 50 35 . . . . . . . . 450 Average 98 | . 20 3 51 121 51 55 47 . 6 208 . . . . 272 Influence Increases 6746 | . 175 . 648 639 853 770 403 . 183 931 130 250 285 245 1234 Destroy 0b10 Robot/C 4600 | . 120 . 460 380 620 520 280 . 120 700 120 220 280 200 580 Destroy 0b10 Robot/NC 170 | . 5 . 10 30 25 35 25 . 5 15 . . 5 10 5 Destroy Leader 942 | . 30 . 104 130 150 118 68 . 52 130 10 30 . 20 100 Allied During Kill 31 | . . . . . 20 10 . . 1 . . . . . . Successful Hack 159 | . 5 . 48 15 26 18 . . 1 36 . . . . 10 Disable Machine 54 | . . . . 9 . 18 . . . 18 . . . . 9 Destroy Structure 175 | . . . 11 45 12 21 30 . 4 32 . . . . 20 Advance Influence 450 | . . . . . . . . . . . . . . . 450 Lose Combat Pursuer 165 | . 15 . 15 30 . 30 . . . . . . . 15 60 Influence Decreases 6692 | . 125 50 474 682 900 854 403 . 183 680 381 250 195 335 1180 Entered New Map 479 | . . 34 . 112 81 49 . . . . 113 . . 90 . Time Decay 5473 | . 125 16 464 540 799 765 393 . 163 630 238 210 95 235 800 Search Patrol Dispatched 100 | . . . . . . . . . . . . . . . 100 Lost Part 560 | . . . 10 30 . . 10 . . 50 30 40 100 10 280 Lost Ally 80 | . . . . . 20 40 . . 20 . . . . . . Squads Dispatched 37 | . 1 . 2 3 7 8 1 . 1 7 . . . . 7 Investigation 5 | . 1 . 1 . 1 1 . . . 1 . . . . . Extermination 17 | . . . . . 4 4 1 . 1 3 . . . . 4 Reinforcement 7 | . . . 1 2 2 2 . . . . . . . . . Assault . | . . . . . . . . . . . . . . . . Garrison 8 | . . . . 1 . 1 . . . 3 . . . . 3 Intercept . | . . . . . . . . . . . . . . . . Searches Triggered 1 | . . . . . . . . . . . . . . . 1 Construction Impeded 1 | . . . . . . 1 . . . . . . . . . Haulers Reinforced . | . . . . . . . . . . . . . . . . Active Scanning Responses . | . . . . . . . . . . . . . . . . Cargo Convoy Interrupts . | . . . . . . . . . . . . . . . . Stealth | -11 -10 -10 -9 -8 -7 -6 -5 -5 -5 -4 -4 -4 -4 -3 -3 --------- Run | Yrd Mat Min Mat Mat Fac Fac Fac Was Fac Fac Upp Upp War Pro Res Distress Signals 11 | . 1 . 1 3 2 2 1 . . . . . . . 1 Communications Jammed . | . . . . . . . . . . . . . . . . Distress Signals . | . . . . . . . . . . . . . . . . Times Spotted 321 | . 12 . 28 31 35 33 18 6 8 39 7 11 40 14 39 Peak Tracking Total 13 | . 4 . 6 7 5 3 5 3 2 9 4 4 13 5 6 Tactical Retreats 10 | . 1 . 1 2 . 2 . . . . . . . 1 3 Traps | -11 -10 -10 -9 -8 -7 -6 -5 -5 -5 -4 -4 -4 -4 -3 -3 ------- Run | Yrd Mat Min Mat Mat Fac Fac Fac Was Fac Fac Upp Upp War Pro Res Traps Triggered 6 | . 1 . 1 . 2 . 1 . . . . . . . 1 Indirectly . | . . . . . . . . . . . . . . . . Trap Hack Attempts . | . . . . . . . . . . . . . . . . Triggered . | . . . . . . . . . . . . . . . . Disarmed 12 | . . . 12 . . . . . . . . . . . . Reprogrammed . | . . . . . . . . . . . . . . . . Reused . | . . . . . . . . . . . . . . . . Traps Extracted . | . . . . . . . . . . . . . . . . Installed . | . . . . . . . . . . . . . . . . Triggered . | . . . . . . . . . . . . . . . . Machines | -11 -10 -10 -9 -8 -7 -6 -5 -5 -5 -4 -4 -4 -4 -3 -3 ---------- Run | Yrd Mat Min Mat Mat Fac Fac Fac Was Fac Fac Upp Upp War Pro Res Machines Disabled 6 | . . . . 1 . 2 . . . 2 . . . . 1 Max in Single Turn 1 | . . . . 1 . 1 . . . 1 . . . . 1 Machines Repaired . | . . . . . . . . . . . . . . . . Machines Dismantled . | . . . . . . . . . . . . . . . . Machines Sabotaged . | . . . . . . . . . . . . . . . . Overloaded Fab Kills . | . . . . . . . . . . . . . . . . Hacking | -11 -10 -10 -9 -8 -7 -6 -5 -5 -5 -4 -4 -4 -4 -3 -3 --------- Run | Yrd Mat Min Mat Mat Fac Fac Fac Was Fac Fac Upp Upp War Pro Res Machines Accessed 76 | . 4 . 8 7 13 12 1 . 6 7 3 . 7 1 7 Terminals 35 | . 4 . 6 3 4 6 . . 5 3 . . . 1 3 Fabricators 6 | . . . . . 4 1 . . . 1 . . . . . Repair Stations 9 | . . . . 2 1 2 . . 1 2 . . . . 1 Recycling Units 8 | . . . . . 3 1 1 . . 1 . . . . 2 Scanalyzers 6 | . . . 2 2 1 1 . . . . . . . . . Garrison Access 2 | . . . . . . 1 . . . . . . . . 1 Total Hacks 187 | . 8 . 22 24 27 36 2 . 18 18 5 . 8 2 17 Successful 106 | . 2 . 12 15 17 18 2 . 13 8 5 . 8 2 4 Failed 81 | . 6 . 10 9 10 18 . . 5 10 . . . . 13 Catastrophic 15 | . . . 2 . 3 3 . . 3 2 . . . . 2 Database Lockouts . | . . . . . . . . . . . . . . . . Manual 61 | . 7 . 12 6 10 8 . . 5 9 . . . . 4 Terminals 81 | . 8 . 17 8 9 14 . . 7 9 . . . 2 7 Fabricators 11 | . . . . . 6 2 . . . 3 . . . . . Repair Stations 43 | . . . . 9 3 12 . . 11 5 . . . . 3 Recycling Units 17 | . . . . . 6 3 2 . . 1 . . . . 5 Scanalyzers 18 | . . . 5 7 3 3 . . . . . . . . . Garrison Access 4 | . . . . . . 2 . . . . . . . . 2 Terminal Hacks 40 | . 2 . 8 3 4 3 . . 3 2 5 . 8 2 . Record 12 | . . . . . . . . . . . 3 . 7 2 . Robot Analysis 1 | . . . . . 1 . . . . . . . . . . Open Door 3 | . . . . . . . . . . . 2 . 1 . . Open DSF 5 | . . . . . 1 2 . . 2 . . . . . . Terminal Index 5 | . . . 1 1 1 . . . 1 1 . . . . . Fabricator Index 1 | . . . 1 . . . . . . . . . . . . Scanalyzer Index 6 | . . . 3 1 1 . . . . 1 . . . . . Alert Level 1 | . 1 . . . . . . . . . . . . . . Locate Traps 1 | . . . . 1 . . . . . . . . . . . Disarm Traps 2 | . . . 2 . . . . . . . . . . . . Hauler Manifests 1 | . . . 1 . . . . . . . . . . . . Zone Layout 2 | . 1 . . . . 1 . . . . . . . . . Fabricator Hacks 5 | . . . . . 3 1 . . . 1 . . . . . Network Status 2 | . . . . . 2 . . . . . . . . . . Build 3 | . . . . . 1 1 . . . 1 . . . . . Repair Station Hacks 33 | . . . . 6 2 10 . . 10 4 . . . . 1 Scan Component 17 | . . . . 3 1 5 . . 5 2 . . . . 1 Repair 16 | . . . . 3 1 5 . . 5 2 . . . . . Recycling Unit Hacks 13 | . . . . . 5 2 2 . . 1 . . . . 3 Report Inventory 8 | . . . . . 3 1 1 . . 1 . . . . 2 Retrieve Components 5 | . . . . . 2 1 1 . . . . . . . 1 Scanalyzer 15 | . . . 4 6 3 2 . . . . . . . . . Retrieve Study 15 | . . . 4 6 3 2 . . . . . . . . . Garrison Access Hacks . | . . . . . . . . . . . . . . . . Unauthorized Hacks . | . . . . . . . . . . . . . . . . Terminals . | . . . . . . . . . . . . . . . . Fabricators . | . . . . . . . . . . . . . . . . Repair Stations . | . . . . . . . . . . . . . . . . Recycling Units . | . . . . . . . . . . . . . . . . Scanalyzers . | . . . . . . . . . . . . . . . . Garrison Access . | . . . . . . . . . . . . . . . . Data Cores Recovered 1 | . . . . . . . . . . 1 . . . . . Used 1 | . . . . . . . . . . 1 . . . . . Hacking Detections 49 | . 3 . 6 5 10 11 . . 4 6 . . . . 4 Full Trace Events 4 | . . . 1 1 . 1 . . . 1 . . . . . Feedback Events . | . . . . . . . . . . . . . . . . Feedback Blocked . | . . . . . . . . . . . . . . . . Robot Schematics Acquired . | . . . . . . . . . . . . . . . . Robots Built 6 | . . . . . 4 2 . . . . . . . . . Authchips . | . . . . . . . . . . . . . . . . Time 286 | . . . . . 134 152 . . . . . . . . . Total Robot Build Rating 26 | . . . . . 16 10 . . . . . . . . . Part Schematics Acquired . | . . . . . . . . . . . . . . . . Parts Built 2 | . . . . . . . . . . 2 . . . . . Authchips . | . . . . . . . . . . . . . . . . Time 58 | . . . . . . . . . . 58 . . . . . Total Part Build Rating 14 | . . . . . . . . . . 14 . . . . . Part Studies Acquired 15 | . . . 4 6 3 2 . . . . . . . . . Parts Repaired 16 | . . . . 3 1 5 . . 5 2 . . . . . Time 735 | . . . . 127 19 284 . . 262 43 . . . . . Parts Recycled . | . . . . . . . . . . . . . . . . Recycled Matter . | . . . . . . . . . . . . . . . . Retrieved Matter . | . . . . . . . . . . . . . . . . Retrieved Components 33 | . . . . . 9 10 4 . . . . . . . 10 Parts Scanalyzed . | . . . . . . . . . . . . . . . . Part Schematics Acquired . | . . . . . . . . . . . . . . . . Parts Damaged . | . . . . . . . . . . . . . . . . Bothacking | -11 -10 -10 -9 -8 -7 -6 -5 -5 -5 -4 -4 -4 -4 -3 -3 ------------ Run | Yrd Mat Min Mat Mat Fac Fac Fac Was Fac Fac Upp Upp War Pro Res Used RIF Installer . | . . . . . . . . . . . . . . . . Robots Hacked . | . . . . . . . . . . . . . . . . Non-combat . | . . . . . . . . . . . . . . . . Combat . | . . . . . . . . . . . . . . . . Robot Hacks Applied . | . . . . . . . . . . . . . . . . Relay Couplers Released . | . . . . . . . . . . . . . . . . Fabnet Peak Effective % . | . . . . . . . . . . . . . . . . Robots Rewired . | . . . . . . . . . . . . . . . . Allies Hacked . | . . . . . . . . . . . . . . . . Hacks Repelled . | . . . . . . . . . . . . . . . . Allies | -11 -10 -10 -9 -8 -7 -6 -5 -5 -5 -4 -4 -4 -4 -3 -3 -------- Run | Yrd Mat Min Mat Mat Fac Fac Fac Was Fac Fac Upp Upp War Pro Res Total Allies 14 | . . . . . 4 2 . 1 4 . 3 . . . . Largest Group 4 | . . . . . 4 3 . 1 4 . 3 3 . . . Highest-Rated Group 114 | . . . . . 48 36 . 31 90 . 114 114 . . . Highest-Rated Ally 38 | . . . . . 12 14 . 31 31 . 38 38 . . . Total Orders . | . . . . . . . . . . . . . . . . Ally Attacks 120 | . . . . . 61 21 . 35 3 . . . . . . Total Damage 1399 | . . . . . 495 228 . 676 . . . . . . . Kills 5 | . . . . . 1 2 . 2 . . . . . . . Allies Corrupted . | . . . . . . . . . . . . . . . . Allies Melted 2 | . . . . . . . . . . . . . 2 . . Intel | -11 -10 -10 -9 -8 -7 -6 -5 -5 -5 -4 -4 -4 -4 -3 -3 ------- Run | Yrd Mat Min Mat Mat Fac Fac Fac Was Fac Fac Upp Upp War Pro Res Active Infowar (turns) 9672 | . . . 1265 343 . . . . . 879 1709 755 1614 1491 1616 Sensors 1697 | . . . . . . . . . . . . 118 1579 . . Terrain 43 | . . . 43 . . . . . . . . . . . . Traps 1565 | . . . 1222 343 . . . . . . . . . . . Machine Analysis 8064 | . . . . . . . . . . 879 1709 755 1614 1491 1616 Cloaking 61 | . . . . . . . . . . . . . . . 61 Robot Analysis Total 1 | . . . . . 1 . . . . . . . . . . Derelict Logs Recovered 1 | . . . . . . . . . . . 1 . . . . Drone Launches . | . . . . . . . . . . . . . . . . Drone Recoveries . | . . . . . . . . . . . . . . . . Exploration | -11 -10 -10 -9 -8 -7 -6 -5 -5 -5 -4 -4 -4 -4 -3 -3 ------------- Run | Yrd Mat Min Mat Mat Fac Fac Fac Was Fac Fac Upp Upp War Pro Res Turns Passed 17894 | 60 482 133 1292 1093 1996 1936 885 347 1052 1433 1709 755 1614 1491 1616 Spaces Moved 9036 | 48 313 84 604 641 1006 1041 470 133 426 563 963 334 858 846 706 Core 24 | 17 . . . . . . . . . . . . . . 7 Treads 5471 | . 78 84 303 . . . 184 133 426 563 963 334 858 846 699 Legs 3541 | 31 235 . 301 641 1006 1041 286 . . . . . . . . Wheels . | . . . . . . . . . . . . . . . . Hover . | . . . . . . . . . . . . . . . . Flight . | . . . . . . . . . . . . . . . . Fastest Speed 50 | 50 120 160 160 105 105 108 108 160 160 155 160 160 160 160 50 Average Speed 153 | 95 129 160 167 106 154 112 147 170 160 166 169 185 161 165 176 Slowest Speed 1500 | 120 160 160 175 175 175 116 240 240 160 255 170 240 245 255 1500 Overloaded Moves . | . . . . . . . . . . . . . . . . Propulsion Burnouts . | . . . . . . . . . . . . . . . . Robots Hopped . | . . . . . . . . . . . . . . . . Potential Cave-ins 2 | . . . . . . . . . . . . . 2 . . Cave-ins Triggered . | . . . . . . . . . . . . . . . . Exploration Rate (%) 44 | 3 52 36 47 45 28 24 13 73 15 12 98 62 93 92 20 Regions Visited 15 Branch Regions 5 Pre-discovered Areas 1 | . . . . . . . . . . . 1 . . . . Known Exits Taken . | . . . . . . . . . . . . . . . . Unknown Exits Taken 13 | 1 1 1 1 1 1 1 . . 1 1 1 1 1 1 . Scrap Searched 10 | . . 1 . . . . . . . . 5 1 . 3 . Spaces Dug 17 | . . . 3 5 . . 3 . . 6 . . . . . Terrain Destroyed 158 | . . . 9 60 9 17 12 . . 16 2 4 14 12 3 Melee 5 | . . . 3 2 . . . . . . . . . . . Projectile 84 | . . . . 9 9 10 12 . . 16 2 4 7 12 3 AOE 69 | . . . 6 49 . 7 . . . . . . 7 . . Terrain Rammed . | . . . . . . . . . . . . . . . . Walls Destroyed . | . . . . . . . . . . . . . . . . Machines Disabled . | . . . . . . . . . . . . . . . . Actions | -11 -10 -10 -9 -8 -7 -6 -5 -5 -5 -4 -4 -4 -4 -3 -3 --------- Run | Yrd Mat Min Mat Mat Fac Fac Fac Was Fac Fac Upp Upp War Pro Res Total 12014 | 62 355 83 793 929 1324 1669 593 214 771 926 1009 414 1006 903 963 Wait 1781 | . . . 90 150 208 469 22 46 312 225 16 47 51 16 129 Move 9022 | 47 312 83 603 640 1005 1040 470 132 425 562 962 333 857 845 706 Hop . | . . . . . . . . . . . . . . . . Pick Up 220 | 10 9 . 22 20 16 27 16 6 9 20 6 4 22 8 25 Fast Attach 17 | . . . . 5 . 2 2 . 1 1 . . 2 . 4 Attach 83 | 5 2 . 4 2 2 1 4 3 . 12 6 5 8 14 15 Detach 14 | . . . . . . . 4 . . 4 2 . . 2 2 Swap 170 | . 10 . 16 27 16 33 17 3 6 18 1 3 13 1 6 Drop 163 | . 6 . 12 23 19 32 16 2 4 15 2 . 18 1 13 Fire 534 | . 16 . 41 57 58 65 42 22 14 69 14 22 35 16 63 Melee 10 | . . . 5 5 . . . . . . . . . . . Ram . | . . . . . . . . . . . . . . . . Kick . | . . . . . . . . . . . . . . . . Crush . | . . . . . . . . . . . . . . . . Escape Stasis . | . . . . . . . . . . . . . . . . Rewire . | . . . . . . . . . . . . . . . . Trap . | . . . . . . . . . . . . . . . . Miscellaneous . | . . . . . . . . . . . . . . . . Route ------- -11/Scrapyard -10/Materials (discovered 3 exits: *Mat x2 / [*Min]) -10/Mines -9/Materials -8/Materials (discovered 2 exits: *Fac / [*Sto]) -7/Factory -6/Factory -5/Factory -5/Waste -5/Factory -4/Factory -4/Upper Caves -4/Upper Caves -4/Warlord -3/Proximity Caves -3/Research History --------- Turn | Location | Event 11 | -11/Scrapyard | Discovered new exit (range 15) 61 | -11/Scrapyard | Entered Materials 210 | -10/Materials | Discovered new exit (range 9) 263 | -10/Materials | Discovered new exit (range 13) 302 | -10/Materials | Build established: Mutant 490 | -10/Materials | Discovered new exit (range 7) 543 | -10/Materials | Entered Mines 662 | -10/Mines | Discovered new exit (range 5) 676 | -10/Mines | Entered Materials 676 | -9/Materials | Evolved 2 slots: Propulsion x1, Utility x1 1900 | -9/Materials | Discovered new exit (range 8) 1968 | -9/Materials | Entered another Materials area 1968 | -8/Materials | Evolved 2 slots: Propulsion x1, Utility x1 2168 | -8/Materials | Repaired Imp. EM Shotgun 2205 | -8/Materials | Garrison activated, responded to threat 2747 | -8/Materials | Discovered new exit (range 12) 2754 | -8/Materials | Discovered new exit (range 15) 2865 | -8/Materials | Repaired Carbon-fiber Leg 2993 | -8/Materials | Repaired Imp. Light Armor Plating 3061 | -8/Materials | Entered Factory 3061 | -7/Factory | Evolved 2 slots: Power x1, Weapon x1 3191 | -7/Factory | Destroyed 7 combat bots 3352 | -7/Factory | Build established: Scientist-Tank 4110 | -7/Factory | Repaired Carbon-fiber Leg+ 4817 | -7/Factory | Fabricated S-27 Virus (x4) 4898 | -7/Factory | Discovered new exit (range 15) 4961 | -7/Factory | Build established: Scavenger-Tank 5057 | -7/Factory | Entered another Factory area 5057 | -6/Factory | Accompanied by 3 allies 5057 | -6/Factory | Evolved 2 slots: Propulsion x1, Utility x1 5203 | -6/Factory | Identified exit to DSF 5738 | -6/Factory | Build established: Scientist-Tank 5762 | -6/Factory | Repaired Broken Cld. Particle Cannon 5833 | -6/Factory | Repaired Cld. Particle Cannon 5874 | -6/Factory | Repaired Carbon-fiber Leg+ 5924 | -6/Factory | Garrison activated, responded to threat 6142 | -6/Factory | Build established: Scavenger-Tank 6421 | -6/Factory | Fabricated E-15 Imp (x2) 6603 | -6/Factory | P-60 Hacker assimilated allied Imp 5b 6754 | -6/Factory | Repaired Flexi-carbon Leg+ 6798 | -6/Factory | Repaired Carbon-fiber Leg+ 6820 | -6/Factory | Discovered new exit (range 12) 6993 | -6/Factory | Entered another Factory area 6993 | -5/Factory | Evolved 2 slots: Utility x2 7374 | -5/Factory | Spotted B-75 Beast 7403 | -5/Factory | Destroyed B-75 Beast 7451 | -5/Factory | Build established: Hacker-Tank 7878 | -5/Factory | Sucked down chute 7878 | -5/Factory | Entered Waste 7879 | -5/Waste | Met a frightened Derelict 7916 | -5/Waste | Spotted C-40 Crusher 7921 | -5/Waste | Spotted C-40 Crusher 7925 | -5/Waste | Destroyed C-40 Crusher 7939 | -5/Waste | Destroyed C-40 Crusher 7948 | -5/Waste | Spotted C-40 Crusher 7959 | -5/Waste | Allies destroyed C-40 Crusher 7960 | -5/Waste | Spotted C-40 Crusher 7961 | -5/Waste | Spotted C-40 Crusher 7974 | -5/Waste | Destroyed C-40 Crusher 7981 | -5/Waste | Spotted C-40 Crusher 7988 | -5/Waste | Allies destroyed C-40 Crusher 7996 | -5/Waste | Destroyed C-40 Crusher 8202 | -5/Waste | Build established: Scavenger-Tank 8202 | -5/Waste | Discovered new exit (range 14) 8225 | -5/Waste | Entered Factory 8225 | -5/Factory | Accompanied by 1 ally 8592 | -5/Factory | Spotted B-75 Beast 8653 | -5/Factory | Destroyed B-75 Beast 8792 | -5/Factory | Repaired Cryofiber Web 8843 | -5/Factory | Repaired Thermic Laser+ 8921 | -5/Factory | Repaired Rnf. Quantum Reactor 8972 | -5/Factory | Repaired Thermic Laser+ 9023 | -5/Factory | Repaired Thermic Laser+ 9057 | -5/Factory | Build established: Hacker-Tank 9256 | -5/Factory | Discovered new exit (range 5) 9277 | -5/Factory | Entered another Factory area 9277 | -4/Factory | Evolved 2 slots: Utility x1, Weapon x1 9419 | -4/Factory | Fabricated Adv. Coolant Injector (x2) 9557 | -4/Factory | Garrison activated, responded to threat 9601 | -4/Factory | Destroyed 7 combat bots 9715 | -4/Factory | Repaired Hvy. Treads 9963 | -4/Factory | Destroyed 9 combat bots 10071 | -4/Factory | Spotted B-86 Titan 10076 | -4/Factory | Destroyed B-86 Titan 10333 | -4/Factory | Destroyed 7 combat bots 10353 | -4/Factory | Discovered new exit (range 11) 10501 | -4/Factory | Repaired Thermic Laser+ 10710 | -4/Factory | Entered Upper Caves 10750 | -4/Upper Caves | Lost 3 parts (1u2w) 10958 | -4/Upper Caves | Learned location of Armory (-3) 11143 | -4/Upper Caves | Attracted the attention of an 0b10 checkpoint 11242 | -4/Upper Caves | Entered an active Warlord outpost 11257 | -4/Upper Caves | A Commander dispatched an escort 11261 | -4/Upper Caves | Learned Factory terminal intel 12323 | -4/Upper Caves | Discovered new exit (range 14) 12419 | -4/Upper Caves | Entered another Upper Caves area 12419 | -4/Upper Caves | Accompanied by 3 allies 12420 | -4/Upper Caves | Commander's escort returned to base 12420 | -4/Upper Caves | Commander's escort returned to base 12420 | -4/Upper Caves | Commander's escort returned to base 12822 | -4/Upper Caves | Attracted the attention of an 0b10 checkpoint 13143 | -4/Upper Caves | Discovered new exit (range 12) 13174 | -4/Upper Caves | Entered Warlord 13266 | -4/Warlord | System corruption cleaned by Quarantine Array 13877 | -4/Warlord | Met Warlord 13902 | -4/Warlord | Warlord's base attacked by MAIN.C 14185 | -4/Warlord | Found Prototype Energy Gun 14186 | -4/Warlord | Identified Vortex Rifle 14189 | -4/Warlord | Found Vortex Rifle 14194 | -4/Warlord | Found Prototype Energy Cannon 14195 | -4/Warlord | Identified Vortex Cannon 14198 | -4/Warlord | Found Vortex Cannon 14252 | -4/Warlord | Warlord forces counterattacked 14347 | -4/Warlord | Spotted Striker 14352 | -4/Warlord | Spotted Executioner 14357 | -4/Warlord | Spotted B-90 Cyclops 14367 | -4/Warlord | Spotted B-86 Titan 14408 | -4/Warlord | Lost 11 allies 14427 | -4/Warlord | Spotted Executioner 14544 | -4/Warlord | Spotted Executioner 14577 | -4/Warlord | Warlord base infiltrated, sounded retreat 14695 | -4/Warlord | Discovered new exit (range 15) 14702 | -4/Warlord | Spotted Executioner 14702 | -4/Warlord | Spotted Striker 14710 | -4/Warlord | Destroyed Striker 14732 | -4/Warlord | Destroyed Executioner 14739 | -4/Warlord | Core integrity fell below 50% 14781 | -4/Warlord | Destroyed 11 combat bots 14784 | -4/Warlord | Lost 12 parts (1p2n5u4w) 14788 | -4/Warlord | Entered Proximity Caves 15029 | -3/Proximity Caves | Spotter reported a threat 15086 | -3/Proximity Caves | Build established: Scavenger-Gunner 15253 | -3/Proximity Caves | Attracted the attention of an 0b10 checkpoint 15260 | -3/Proximity Caves | Spotter reported a threat 15355 | -3/Proximity Caves | Spotter reported a threat 15624 | -3/Proximity Caves | Build established: Scavenger-Tank 16256 | -3/Proximity Caves | Discovered new exit (range 15) 16279 | -3/Proximity Caves | Entered Research 16279 | -3/Research | Evolved 2 slots: Utility x2 16529 | -3/Research | Search patrols dispatched 17103 | -3/Research | Build established: Scavenger-Gunner 17388 | -3/Research | Garrison activated, responded to threat 17517 | -3/Research | Destroyed 7 combat bots 17734 | -3/Research | Spotted B-86 Titan 17843 | -3/Research | System corruption reached 10% 17866 | -3/Research | Core integrity fell below 50% 17882 | -3/Research | Core integrity fell below 20% 17895 | -3/Research | Destroyed by P-80 Master with Gamma Rifle Last Messages --------------- Treads. P-80 Master resets S-43 Plague, system corruption cleaned. K-01 Serf collects debris. Emergency Access malfunctions. R-10 Processor collects Adv. Signal Interpreter. Slug penetrates P-80 Master. R-10 Processor collects Fusion Compressor. K-01 Serf collects debris. B-86 Titan exits siege mode. System corrupted: Heat flow error (+265). R-10 Processor collects Lgt. Antimatter Reactor. P-80 Master suffers critical hit (Meltdown). Penetrated by Slug. Slug penetrates Wall. Adv. Target Analyzer destroyed. Slug penetrates S-43 Plague. S-43 Plague destroyed. [Achievement: 10k Club] [Achievement: 20k Club] Map ----- +----------------------------------------------------+ | ? ???????????????? | | ??????????????? | | ????????????? | | ???????????? | | ####"##% #################+##########??????????? | | ####"## #?????????????????????????????????????? | | """" # #?????????????????????????????????????? | | """" # #?????????????????????????????????????? | | """" # #?????????????????????????????????????? | | """" # #?????????????????????????????????????? | | + " ????????????????????????????????????? | | # %%" ?????????????????????"""???????????? | | # # ????????????????????"""???????????? | | # ###"##################??"""???????????? | | # #????????????????? | | ####### #????????????????? | | ??????# % #????????????????? | | ??????# % RBB" +????????????????? | | ??????######"##########BB### #????????????????? | | ???????????###???# R%k # #????????????????? | | ?????????????????# # ######???????????? | | ?????????????????# " # ??????????? | | ?????????????????# "" # ??????????? | | ?????????????????# " = [ # ??????????? | | ?????????????????# *%p%=# ??????????????? | | ?????????????????# !=*==@ ##????????????????????? | | ?????????????????# !=!%%%= ##????????????????????? | | ?????????????????#####/######????????????????????? | | ?????????????????????#=#?????????????????????????? | | ?????????????????????#*#?????????????????????????? | | ?????????????????????#!#?????????????????????????? | | ?????????????????????###?????????????????????????? | | ?????????????????????????????????????????????????? | | ?????????????????????????????????????????????????? | | ?????????????????????????????????????????????????? | | ?????????????????????????????????????????????????? | | ?????????????????????????????????????????????????? | | ????????????????????""?""????????????????????????? | | ????????????????????""F""????????????????????????? | | ?????????????????????"""?????????????????????????? | | ?????????????????????????????????????????????????? | | ?????????????????????????????????????????????????? | | ?????????????????????????????????????????????????? | | ?????????????????????????????????????????????????? | | ?????????????????????????????????????????????????? | | ?????????????????????????????????????????????????? | | ?????????????????????????????????????????????????? | | ?????????????????????????????????????????????????? | | ?????????????????????????????????????????????????? | | ?????????????????????????????????????????????????? | +----------------------------------------------------+ Best States ------------- Heat Dissipation 153 Coolant Potential 100 Energy Generation 49 Energy Capacity 575 Matter Stores 300 Matter Capacity 300 Sight Range 16 Robot Scan Range 16 Terrain Scan Range 16 Terrain Scan Density 10 Cloak Strength 3 Base Temperature (-) 150 Corruption Containment 8 Armor Coverage 450 Resistance: KI 20 Resistance: TH 20 Resistance: EX 70 Resistance: EM 20 Resistance: I 20 Resistance: S 20 Resistance: P 20 Weapon Shielding 66 Point Defense Rating 80 Weapon Cycling 15 Phase Shifting 10 Evasion (%) 55 Target Analysis 12 Recoil Reduction 5 Particle Charging 20 Offensive Hacking 46 Defensive Hacking 14 Item Schematics ----------------- None Robot Schematics ------------------ None Fabricated ------------ S-27 Virus | x4 | -7/Factory | Preloaded E-15 Imp | x2 | -6/Factory | Preloaded Adv. Coolant Injector | x2 | -4/Factory | Preloaded Repaired ---------- Imp. EM Shotgun | 18% | -8/Materials Carbon-fiber Leg | 69% | -8/Materials Imp. Light Armor Plating | 66% | -8/Materials Carbon-fiber Leg | 67% | -7/Factory Cld. Particle Cannon | 64% | -6/Factory | Broken Cld. Particle Cannon | 48% | -6/Factory Carbon-fiber Leg | 72% | -6/Factory Flexi-carbon Leg | 68% | -6/Factory Carbon-fiber Leg | 57% | -6/Factory Cryofiber Web | 13% | -5/Factory Thermic Laser | 23% | -5/Factory Rnf. Quantum Reactor | 58% | -5/Factory Thermic Laser | 62% | -5/Factory Thermic Laser | 70% | -5/Factory Hvy. Treads | 43% | -4/Factory Thermic Laser | 16% | -4/Factory Studied --------- Aluminum Leg | -9/Materials | Hacked Med. Laser | -9/Materials | Hacked Lgt. Ion Engine | -9/Materials | Hacked Mining Claw | -9/Materials | Hacked Imp. Aluminum Leg | -8/Materials | Hacked Lgt. Nuclear Core | -8/Materials | Hacked Hvy. Particle Cannon | -8/Materials | Hacked Imp. Ion Engine | -8/Materials | Hacked Carbon-fiber Leg | -8/Materials | Hacked Lgt. Deuterium Engine | -8/Materials | Hacked Imp. Deuterium Engine | -7/Factory | Hacked Plasma Cannon | -7/Factory | Hacked Gatling Laser | -7/Factory | Hacked Thermic Laser | -6/Factory | Hacked Flexi-carbon Leg | -6/Factory | Hacked Alien Tech Used ----------------- None Achievements -------------- 10k Club 20k Club A Powerful Ally? Charge!!! Dangerous Findings Fancy Inventory Gunslinger Immobile And Lovin' It Leap Before You Look My Command Is Your Wish Oh No You Don't! Plot Armor Prolific Hacker Pyromaniac Respectable Loadout Tank Tank Life We Love MA Challenges ------------ None Game ------ Seed MagneticThermicShredder Manual? 0 Play Time 04:38:29 Cumulative 13.3 hours Start 2026.03.26 @ 15:43:50 End 2026.03.26 @ 20:46:27 Sessions 1 Manual Loads 0 Difficulty Adventurer Special Mode None Game No. 17 Rogue 0 Adventurer 17 Explorer 0 Win Type - Total 0 Types 0/0/0/0/0/0/0/0/0/0 Lore% 10 Gallery% 15 Achievement% 15 Wizard Run 0 Options --------- Layout 1 ASCII 0 Keyboard 0 Movement Mouse Keybinds 0 Fullscreen 1 Font 32/Tamsyn Map View 50x35 Zoom Use 0% Tactical HUD 0 Map Filters NONE Filters NONE Steam 1 RUN: 4057218f-6d71-4643-b315-4892672b09f6